bitfinex-derivatives/quotes_SOLF0:USTF0_20250923
["timestamp","ask_amount","ask_price","bid_price","bid_amount"]
[1758601207305,3.35728639,216.34,216.28,114.28]
[1758601207605,11.6854,216.39,216.29,7.09]
[1758601207807,7.16154242,216.38,216.29,7.09]
[1758601208007,7.16154242,216.37,216.29,7.09]
[1758601208207,3.35588171,216.36,216.29,7.09]
[1758601208507,3.35588171,216.35,216.29,7.09]
[1758601208708,3.35588171,216.34,216.29,7.09]
[1758601208903,7.53,216.37,216.3,7.09]
[1758601209107,7.16116284,216.36,216.3,7.09]
[1758601209309,7.53,216.34,216.3,7.09]
[1758601209902,7.53,216.34,216.28,114.28]
[1758601210108,7.53,216.34,216.29,7.09]
[1758601210311,7.53,216.34,216.28,114.28]
[1758601210609,7.53,216.34,216.29,7.09]
[1758601210809,7.53,216.34,216.28,114.28]
[1758601211110,7.53,216.34,216.29,7.09]
[1758601211309,7.53,216.34,216.28,114.28]
[1758601211512,7.53,216.37,216.29,7.09]
[1758601211708,7.16156658,216.36,216.29,7.09]
[1758601211905,3.35568087,216.35,216.29,7.09]
[1758601212212,7.53,216.37,216.29,7.09]
[1758601212413,3.3564719,216.36,216.29,7.09]
[1758601212610,3.3564719,216.35,216.29,7.09]
[1758601212913,7.53,216.37,216.29,7.09]
[1758601213111,3.35698886,216.36,216.29,7.09]
[1758601213307,3.35698886,216.35,216.29,7.09]
[1758601213606,7.53,216.37,216.29,7.09]
[1758601213909,3.35689843,216.36,216.29,7.09]
[1758601214108,3.35689843,216.35,216.29,7.09]
[1758601214309,7.53,216.37,216.29,7.09]
[1758601214512,3.35659888,216.36,216.29,7.09]
[1758601214711,3.35659888,216.35,216.29,7.09]
[1758601214915,3.35631805,216.34,216.29,7.09]
[1758601215113,7.53,216.37,216.29,7.09]
[1758601215416,3.35624643,216.36,216.29,11.2471]
[1758601215712,7.53,216.37,216.29,11.2471]
[1758601215713,3.35624643,216.35,216.29,11.2471]
[1758601215906,7.53,216.37,216.29,11.2471]
[1758601216109,3.35612582,216.36,216.31,7.39]
[1758601216315,7.78,216.4,216.31,7.39]
[1758601216509,7.16289311,216.39,216.31,7.39]
[1758601216710,3.35644784,216.38,216.31,7.39]
[1758601217009,3.35644784,216.37,216.31,7.39]
[1758601217203,7.78,216.4,216.31,11.5467]
[1758601217406,7.16347995,216.39,216.31,11.5467]
[1758601217606,3.35682265,216.38,216.31,11.5467]
[1758601217810,3.35682265,216.37,216.31,7.39]
[1758601218011,69.79672973,216.43,216.28,7.39]
[1758601218012,7.78,216.35,216.28,7.39]
[1758601218209,7.78,216.33,216.29,114.22]
[1758601218407,7.78,216.31,216.27,7.39]
[1758601218613,3.35515798,216.3,216.26,114.22]
[1758601218909,11.13515798,216.29,216.26,114.22]
[1758601219112,7.78,216.29,216.26,114.22]
[1758601219315,7.78,216.29,216.23,127.51407627]
[1758601219515,11.133103,216.28,216.21,463.58]
[1758601219715,7.78,216.25,216.13,7.39]
[1758601219909,7.78,216.23,216.14,44.58]
[1758601220108,7.15428778,216.22,216.14,44.58]
[1758601220305,3.353103,216.21,216.14,44.58]
[1758601220615,7.78,216.23,216.14,44.58]
[1758601220810,7.78,216.21,216.09,356.75]
[1758601221015,7.78,216.19,216.1,114.22]
[1758601221216,7.14355144,216.18,216.1,114.22]
[1758601221411,11.12765518,216.17,216.1,114.22]
[1758601221617,7.78,216.17,216.1,114.22]
[1758601224109,11.62323474,216.17,216.1,114.22]
[1758601224312,7.78,216.15,216.11,114.24]
[1758601224519,4.1598,216.16,216.11,114.24]
[1758601225713,7.78,216.15,216.11,114.24]
[1758601226207,4.1603,216.14,216.11,114.24]
[1758601226413,7.78,216.13,216.07,114.24]
[1758601227517,7.78,216.11,216.07,114.24]
[1758601227710,4.1606,216.12,216.07,114.24]
[1758601227911,7.78,216.11,216.07,114.24]
[1758601228916,4.1606,216.12,216.07,114.24]
[1758601229118,7.78,216.11,216.07,114.24]
[1758601230717,7.78,216.11,216.07,121.47]
[1758601233427,7.72,216.11,216.07,121.47]
[1758601233713,11.881,216.1,216.07,114.24]
[1758601234315,11.881,216.1,216.04,7.23]
[1758601234515,11.881,216.1,216.04,121.51]
[1758601234719,7.72,216.07,216.04,114.28]
[1758601235019,7.72,216.07,216.01,7.23]
[1758601235420,68.56773474,216.11,216.0,114.28]
[1758601235421,4.1618,216.06,216.0,114.28]
[1758601235717,7.72,216.06,216.0,114.28]
[1758601236221,4.1621,216.04,216.0,114.28]
[1758601236423,7.72,216.03,216.0,114.28]
[1758601236628,7.72,216.03,215.97,7.23]
[1758601237532,7.72,216.01,215.97,7.23]
[1758601238622,4.1626,216.02,215.97,7.23]
[1758601238826,7.72,216.0,215.97,7.23]
[1758601239425,7.72,216.0,215.96,121.51]
[1758601239826,11.8829,216.0,215.96,121.51]
[1758601240415,7.72,216.0,215.96,121.51]
[1758601240820,7.72,216.0,215.97,7.23]
[1758601241621,7.72,216.0,215.96,114.28]
[1758601242128,7.72,215.98,215.94,7.23]
[1758601242423,7.72,216.0,215.92,52.68]
[1758601243521,4.1634,215.97,215.92,52.68]
[1758601243720,7.72,215.97,215.92,59.91]
[1758601244823,7.72,215.97,215.93,7.23]
[1758601245224,21.38130485,216.01,215.93,7.23]
[1758601245432,21.38130485,216.01,215.93,11.3942]
[1758601245433,13.66130485,216.01,215.93,11.3942]
[1758601245618,11.8824,216.03,215.93,11.3942]
[1758601246328,11.8824,216.03,215.94,7.23]
[1758601247025,4.1627,216.01,215.94,7.23]
[1758601247230,7.72,216.03,215.94,7.23]
[1758601247231,7.72,216.02,215.94,7.23]
[1758601248419,21.31898957,216.02,215.94,7.23]
[1758601248624,2.46963868,216.0,215.92,52.68]
[1758601248927,7.72,215.96,215.92,52.68]
[1758601249321,7.72,215.96,215.92,7.23]
[1758601249727,7.72,215.96,215.88,7.23]
[1758601250530,4.1638,215.95,215.88,7.23]
[1758601255334,7.72,215.96,215.89,7.23]
[1758601260255,7.04795095,215.95,215.89,7.23]
[1758601260450,11.8838,215.96,215.89,7.23]
[1758601260649,7.04824634,215.95,215.89,7.23]
[1758601260849,11.8838,215.96,215.89,11.395]
[1758601261048,3.74641463,215.95,215.9,7.76]
[1758601261244,3.30638039,215.94,215.9,7.76]
[1758601261449,4.1638,215.96,215.9,7.76]
[1758601261753,7.056215,215.95,215.9,7.76]
[1758601261953,7.056215,215.94,215.89,4.165]
[1758601262155,3.3110059,215.93,215.9,7.76]
[1758601262352,3.75686941,215.92,215.89,4.165]
[1758601262652,4.1638,215.96,215.9,7.76]
[1758601262954,7.06899418,215.95,215.9,7.76]
[1758601263152,7.06899418,215.94,215.89,4.165]
[1758601263359,7.06899418,215.93,215.9,7.76]
[1758601263559,7.06899418,215.92,215.89,4.165]
[1758601263755,7.06899418,215.91,215.9,7.76]
[1758601265656,7.08034348,215.91,215.9,7.76]
[1758601266552,3.31153205,215.91,215.9,7.76]
[1758601266757,3.31153205,215.96,215.9,7.76]
[1758601266958,6.93741013,215.95,215.89,7.76]
[1758601267158,6.93741013,215.94,215.88,2.46963868]
[1758601267354,6.93741013,215.93,215.87,4.1652]
[1758601267555,7.68,215.91,215.75,64.8302]
[1758601267763,7.68,215.89,215.82,2.46963868]
[1758601267953,4.1656,215.86,215.8,44.04963868]
[1758601268159,14.618591,215.85,215.81,7.76]
[1758601268353,6.938591,215.84,215.81,7.76]
[1758601268559,3.31153205,215.83,215.81,7.76]
[1758601268761,3.31153205,215.82,215.81,7.76]
[1758601269063,3.31153205,215.84,215.81,7.76]
[1758601269264,3.31153205,215.83,215.81,7.76]
[1758601269465,3.31153205,215.82,215.81,7.76]
[1758601269867,3.31153205,215.84,215.81,7.76]
[1758601270062,3.31153205,215.83,215.78,2.46963868]
[1758601270268,5.16802973,215.88,215.82,2.46963868]
[1758601270468,6.95430946,215.87,215.83,7.76]
[1758601270664,6.95430946,215.86,215.83,7.76]
[1758601270965,3.32506602,215.85,215.82,2.46963868]
[1758601271173,3.32506602,215.84,215.83,7.76]
[1758601272068,3.32506602,215.84,215.83,10.22963868]
[1758601274171,7.68,215.9,215.83,10.22963868]
[1758601274373,6.95026492,215.89,215.86,7.76]
[1758601274665,3.32365924,215.88,215.86,7.76]
[1758601274865,3.32365924,215.87,215.86,7.76]
[1758601276372,7.07,215.93,215.86,7.76]
[1758601276564,3.32795741,215.92,215.89,7.18]
[1758601276766,3.32795741,215.91,215.89,7.18]
[1758601276961,7.70985346,215.96,215.88,2.46963868]
[1758601276962,7.70985346,215.96,215.9,7.18]
[1758601277169,6.96136535,215.95,215.91,7.18]
[1758601277371,3.3282763,215.94,215.9,2.46963868]
[1758601277573,3.3282763,215.93,215.91,7.18]
[1758601277768,3.3282763,215.92,215.91,7.18]
[1758601278073,3.3282763,215.95,215.91,9.64963868]
[1758601278277,3.3282763,215.94,215.91,9.64963868]
[1758601278571,3.3282763,215.93,215.89,2.46963868]
[1758601278772,3.3282763,215.92,215.9,7.18]
[1758601278967,3.3282763,215.91,215.9,7.18]
[1758601279170,3.3282763,215.93,215.9,7.18]
[1758601279370,3.3282763,215.92,215.89,2.46963868]
[1758601279570,0.63985346,215.96,215.9,7.18]
[1758601279872,3.33158247,215.95,215.89,9.64963868]
[1758601280177,3.33158247,215.94,215.9,7.18]
[1758601280371,3.33158247,215.93,215.9,7.18]
[1758601280671,3.33158247,215.92,215.88,2.46963868]
[1758601280873,3.33158247,215.92,215.84,114.28]
[1758601280874,7.07,215.9,215.84,2.46963868]
[1758601281077,7.07,215.88,215.82,123.92963868]
[1758601281378,10.40158247,215.87,215.83,7.18]
[1758601281576,3.33158247,215.86,215.83,7.18]
[1758601282380,3.33158247,215.85,215.83,7.18]
[1758601282675,7.07,215.9,215.83,7.18]
[1758601282867,11.14190041,215.89,215.83,7.18]
[1758601283070,3.33558837,215.88,215.84,2.46963868]
[1758601283277,7.07,215.92,215.84,9.64963868]
[1758601283478,3.33666182,215.91,215.84,9.64963868]
[1758601283672,3.33666182,215.9,215.84,9.64963868]
[1758601283878,10.40666182,215.89,215.84,9.64963868]
[1758601284180,3.33666182,215.88,215.85,7.18]
[1758601285670,10.40666182,215.88,215.84,2.46963868]
[1758601285865,7.07,215.88,215.84,9.64963868]
[1758601286574,7.07,215.88,215.84,7.18]
[1758601287775,3.33877395,215.87,215.83,7.18]
[1758601288082,3.33868243,215.86,215.83,7.18]
[1758601288279,7.07,215.87,215.83,7.18]
[1758601288480,3.33887791,215.86,215.83,7.18]
[1758601288680,7.07,215.87,215.83,7.18]
[1758601288980,4.1649,215.9,215.83,7.18]
[1758601288981,3.33921805,215.86,215.83,7.18]
[1758601289274,7.07,215.88,215.83,7.18]
[1758601289471,7.07,215.86,215.83,7.18]
[1758601289869,3.33859354,215.85,215.81,114.26]
[1758601290073,7.07,215.87,215.81,114.26]
[1758601290279,3.3317563,215.86,215.8,114.26]
[1758601290474,3.3317563,215.85,215.8,114.26]
[1758601290681,7.51,215.85,215.81,7.1]
[1758601291070,4.1652,215.88,215.82,7.1]
[1758601291273,3.33246144,215.87,215.81,2.46963868]
[1758601291474,7.51,215.89,215.81,2.46963868]
[1758601291674,3.33184827,215.88,215.82,7.1]
[1758601291882,3.33184827,215.87,215.81,2.46963868]
[1758601292084,7.51,215.89,215.82,7.1]
[1758601292382,3.33119119,215.88,215.82,7.1]
[1758601292582,3.33119119,215.87,215.82,7.1]
[1758601292782,11.675,215.89,215.82,7.1]
[1758601293082,3.33178523,215.88,215.82,7.1]
[1758601293283,3.33178523,215.87,215.82,7.1]
[1758601293584,11.675,215.89,215.82,7.1]
[1758601293779,3.33192271,215.88,215.82,7.1]
[1758601293982,3.33192271,215.87,215.82,7.1]
[1758601294181,3.33200414,215.86,215.82,7.1]
[1758601294485,11.675,215.89,215.82,7.1]
[1758601294684,3.3319462,215.88,215.82,7.1]
[1758601294884,3.3319462,215.87,215.81,11.2664]
[1758601295185,3.3319462,215.86,215.81,4.1664]
[1758601295481,11.675,215.89,215.82,7.1]
[1758601295681,3.33215058,215.88,215.82,7.1]
[1758601295884,3.33215058,215.87,215.81,11.2664]
[1758601296072,7.51,215.85,215.79,9.56963868]
[1758601296278,7.51,215.85,215.79,121.34]
[1758601296572,3.33181828,215.84,215.79,121.34]
[1758601296772,11.6758,215.85,215.8,7.1]
[1758601296975,3.33181828,215.84,215.8,7.1]
[1758601297173,11.6758,215.85,215.79,114.24]
[1758601297372,3.33172053,215.84,215.8,7.1]
[1758601297583,11.6758,215.85,215.79,121.34]
[1758601297883,3.33158564,215.84,215.79,114.24]
[1758601298181,11.6758,215.85,215.79,121.34]
[1758601298380,3.32897985,215.84,215.8,7.1]
[1758601298583,11.6758,215.85,215.8,7.1]
[1758601298781,3.32903374,215.84,215.79,114.24]
[1758601298983,11.6758,215.85,215.79,121.34]
[1758601299184,7.51,215.82,215.79,121.34]
[1758601299379,7.51,215.82,215.76,7.1]
[1758601299582,7.51,215.8,215.72,114.24]
[1758601299879,11.6768,215.8,215.74,7.1]
[1758601300086,2.46963868,215.79,215.73,114.24]
[1758601302685,11.6772,215.78,215.72,7.1]
[1758601302879,7.51,215.76,215.72,7.1]
[1758601303685,9.97963868,215.77,215.7,350.16]
[1758601303986,3.32992462,215.76,215.7,350.16]
[1758601304187,9.97963868,215.77,215.7,350.16]
[1758601305783,16.43730585,215.79,215.71,7.1]
[1758601306086,3.33011448,215.78,215.71,7.1]
[1758601306281,16.03374771,215.79,215.71,7.1]
[1758601306585,3.32956949,215.78,215.71,7.1]
[1758601306784,3.32956949,215.77,215.71,7.1]
[1758601306985,20.20074771,215.79,215.71,7.1]
[1758601307188,3.32944898,215.78,215.71,7.1]
[1758601307386,20.20074771,215.79,215.71,7.1]
[1758601307686,3.32906625,215.78,215.71,7.1]
[1758601307882,3.32906625,215.77,215.71,7.1]
[1758601308184,20.20074771,215.79,215.71,7.1]
[1758601308386,3.33043506,215.78,215.71,7.1]
[1758601308584,3.33043506,215.77,215.71,7.1]
[1758601308887,20.20074771,215.79,215.71,11.2683]
[1758601309088,3.33090144,215.78,215.71,11.2683]
[1758601309287,16.03374771,215.79,215.71,7.1]
[1758601309487,3.33070354,215.78,215.71,7.1]
[1758601309688,16.03374771,215.79,215.71,7.1]
[1758601309984,3.33134044,215.78,215.71,7.1]
[1758601310186,16.03374771,215.79,215.71,7.1]
[1758601310488,3.33145783,215.78,215.71,9.56963868]
[1758601310690,13.56410903,215.79,215.71,7.1]
[1758601310989,7.51,215.8,215.71,11.2685]
[1758601311189,3.33038647,215.79,215.71,3.86552374]
[1758601311386,0.62305792,215.81,215.72,7.1]
[1758601311590,3.33071562,215.8,215.74,7.1]
[1758601311791,8.13305792,215.81,215.74,7.1]
[1758601312092,3.33071566,215.8,215.74,7.1]
[1758601312289,3.33071566,215.79,215.73,121.34]
[1758601314189,17.13171329,215.79,215.73,121.34]
[1758601314390,3.33071566,215.78,215.74,7.1]
[1758601314588,8.13305792,215.81,215.74,7.1]
[1758601314890,3.32945257,215.8,215.74,7.1]
[1758601315091,3.32945257,215.79,215.74,7.1]
[1758601315293,8.13305792,215.81,215.74,7.1]
[1758601315485,3.32898385,215.8,215.74,7.1]
[1758601315686,8.13305792,215.81,215.74,7.1]
[1758601315990,3.32896939,215.8,215.74,7.1]
[1758601316292,8.13305792,215.81,215.74,7.1]
[1758601316486,3.32879501,215.8,215.74,7.1]
[1758601316685,8.13305792,215.81,215.74,7.1]
[1758601316886,3.32867167,215.8,215.74,7.1]
[1758601317184,0.62305792,215.81,215.76,7.1]
[1758601317389,7.51,215.84,215.76,7.1]
[1758601317695,3.32880691,215.83,215.76,7.1]
[1758601317892,3.32880691,215.82,215.76,7.1]
[1758601318187,3.32880691,215.81,215.75,4.1677]
[1758601318387,7.51,215.84,215.76,7.1]
[1758601318587,7.51,215.82,215.76,7.1]
[1758601318893,7.51,215.8,215.72,121.32]
[1758601319094,3.32810741,215.79,215.72,121.32]
[1758601319392,3.86552374,215.82,215.72,121.32]
[1758601319587,7.51,215.8,215.72,121.32]
[1758601319789,7.49452433,215.79,215.72,121.32]
[1758601320094,3.32742433,215.78,215.72,121.32]
[1758601321491,4.1674,215.77,215.72,114.22]
[1758601322092,7.67,215.76,215.72,7.59]
[1758601322488,7.67,215.81,215.71,114.22]
[1758601322695,3.34594009,215.8,215.72,7.59]
[1758601322888,7.67,215.81,215.72,7.59]
[1758601322889,3.34594009,215.79,215.72,7.59]
[1758601323091,7.67,215.81,215.72,7.59]
[1758601323391,3.3465652,215.8,215.72,7.59]
[1758601323597,7.67,215.81,215.73,4.1681]
[1758601323788,3.346828,215.8,215.74,7.59]
[1758601323991,7.67,215.81,215.74,7.59]
[1758601324192,3.34693392,215.8,215.74,7.59]
[1758601324494,3.34822483,215.79,215.75,7.59]
[1758601324694,3.34822483,215.78,215.72,7.59]
[1758601324992,7.67,215.8,215.72,7.59]
[1758601325196,3.34764456,215.79,215.72,7.59]
[1758601325396,7.67,215.8,215.72,7.59]
[1758601325397,3.34764456,215.78,215.72,7.59]
[1758601325597,3.34764456,215.77,215.72,7.59]
[1758601325789,4.1674,215.77,215.72,7.59]
[1758601325989,4.1674,215.77,215.71,114.22]
[1758601326189,4.1674,215.77,215.71,121.81]
[1758601328200,7.67,215.79,215.72,7.59]
[1758601328398,3.34848274,215.78,215.72,7.59]
[1758601328699,3.34901879,215.77,215.72,7.59]
[1758601328900,7.67,215.79,215.72,7.59]
[1758601329098,3.34887044,215.78,215.72,7.59]
[1758601329300,3.34931468,215.77,215.72,7.59]
[1758601329497,11.01924613,215.76,215.72,7.59]
[1758601329698,11.0191703,215.75,215.72,7.59]
[1758601329999,12.42620851,215.79,215.73,7.59]
[1758601330296,3.34911485,215.78,215.7,7.59]
[1758601330506,3.34911485,215.77,215.7,7.59]
[1758601330695,3.34911485,215.76,215.7,7.59]
[1758601330896,12.42620851,215.79,215.7,7.59]
[1758601331202,3.34982653,215.78,215.7,7.59]
[1758601331404,3.34982653,215.77,215.7,7.59]
[1758601331701,3.34982653,215.76,215.7,7.59]
[1758601332000,12.42620851,215.79,215.7,7.59]
[1758601332198,3.35124266,215.78,215.7,3.86552374]
[1758601332501,0.58910851,215.79,215.71,7.59]
[1758601332702,3.3524577,215.78,215.71,7.59]
[1758601332894,21.85849436,215.83,215.73,3.86552374]
[1758601333094,3.35333061,215.82,215.75,7.59]
[1758601333299,3.35333061,215.81,215.75,7.59]
[1758601333499,3.35333061,215.8,215.74,114.18]
[1758601333800,21.85849436,215.83,215.75,11.7577]
[1758601333996,3.35572218,215.82,215.75,7.59]
[1758601334192,7.67,215.8,215.74,114.18]
[1758601334397,3.35572218,215.79,215.73,20.56]
[1758601334596,3.35563838,215.78,215.73,20.56]
[1758601334798,11.02563838,215.77,215.73,20.56]
[1758601335000,3.35563838,215.76,215.73,20.56]
[1758601335201,7.67,215.77,215.73,20.56]
[1758601335403,3.35610507,215.76,215.71,7.59]
[1758601335604,3.35610507,215.75,215.69,46.78]
[1758601335903,11.8374,215.77,215.69,46.78]
[1758601336103,3.35575726,215.76,215.69,46.78]
[1758601336300,3.35575726,215.75,215.7,7.28]
[1758601336499,3.35575726,215.74,215.7,7.28]
[1758601336699,7.67,215.77,215.7,3.86552374]
[1758601336900,3.35820073,215.76,215.71,7.28]
[1758601337094,3.35820073,215.75,215.71,7.28]
[1758601337309,4.1672,215.78,215.71,7.28]
[1758601337503,3.35904204,215.77,215.71,7.28]
[1758601337696,3.35904204,215.76,215.7,7.28]
[1758601338000,3.35904204,215.75,215.7,7.28]
[1758601338204,3.35904204,215.74,215.7,7.28]
[1758601338405,7.79,215.78,215.7,7.28]
[1758601338701,3.3598174,215.77,215.7,7.28]
[1758601338898,7.5273174,215.76,215.7,7.28]
[1758601339096,3.3598174,215.75,215.7,7.28]
[1758601340004,3.3598174,215.75,215.69,50.64552374]
[1758601340203,11.1498174,215.75,215.69,46.78]
[1758601340404,3.3598174,215.74,215.7,7.28]
[1758601340604,3.3598174,215.74,215.69,46.78]
[1758601341004,3.3598174,215.74,215.7,7.28]
[1758601341710,3.3598174,215.74,215.69,46.78]
[1758601342006,3.3598174,215.74,215.7,7.28]
[1758601342305,3.3598174,215.74,215.69,46.78]
[1758601342606,11.1498174,215.74,215.7,7.28]
[1758601342911,3.3598174,215.73,215.7,7.28]
[1758601343208,3.3598174,215.73,215.67,7.28]
[1758601346108,7.79,215.71,215.63,7.28]
[1758601346409,3.3598174,215.7,215.63,7.28]
[1758601347906,7.79,215.69,215.59,4.1707]
[1758601348107,3.3598174,215.68,215.6,7.28]
[1758601348519,3.3598174,215.68,215.61,7.28]
[1758601351211,3.3598174,215.67,215.62,3.86552374]
[1758601351417,7.25,215.73,215.65,7.06]
[1758601351608,3.37146449,215.72,215.65,7.06]
[1758601351802,3.37146449,215.71,215.65,7.06]
[1758601352009,3.37146449,215.7,215.64,4.1698]
[1758601352210,3.37146449,215.69,215.64,4.1698]
[1758601352410,3.37146449,215.68,215.64,4.1698]
[1758601352611,7.25,215.73,215.65,7.06]
[1758601352814,3.37041,215.72,215.65,7.06]
[1758601353013,3.37041,215.71,215.67,7.06]
[1758601353220,3.37041,215.7,215.66,4.1694]
[1758601353416,3.37041,215.69,215.66,4.1694]
[1758601353618,7.25,215.73,215.67,7.06]
[1758601353815,10.62019772,215.72,215.66,11.2294]
[1758601354114,3.37019772,215.71,215.67,7.06]
[1758601354309,3.37019772,215.7,215.67,7.06]
[1758601354620,3.37019772,215.69,215.67,7.06]
[1758601354820,7.25,215.73,215.67,7.06]
[1758601355120,7.25,215.71,215.63,7.06]
[1758601355312,3.36991932,215.7,215.63,121.2]
[1758601355513,3.36991932,215.69,215.63,121.2]
[1758601355712,10.61991932,215.68,215.64,7.06]
[1758601355912,10.61991932,215.67,215.59,7.06]
[1758601356127,3.36991932,215.66,215.59,7.06]
[1758601356419,11.4189,215.7,215.59,4.1706]
[1758601356613,3.36790849,215.69,215.6,7.06]
[1758601356920,3.36790849,215.68,215.6,7.06]
[1758601357121,7.25,215.67,215.6,7.06]
[1758601357419,3.36790849,215.66,215.6,7.06]
[1758601357720,7.25,215.67,215.6,7.06]
[1758601358021,3.36672406,215.66,215.6,7.06]
[1758601358221,7.25,215.67,215.6,7.06]
[1758601358520,3.36576003,215.66,215.6,7.06]
[1758601358721,7.25,215.67,215.6,7.06]
[1758601358921,3.36534304,215.66,215.6,7.06]
[1758601359120,11.4193,215.67,215.6,7.06]
[1758601359323,3.36518609,215.66,215.6,7.06]
[1758601359518,11.4193,215.67,215.6,7.06]
[1758601359718,4.1697,215.65,215.6,7.06]
[1758601359918,7.25,215.64,215.6,7.06]
[1758601360416,11.4197,215.65,215.59,114.14]
[1758601360617,11.4197,215.65,215.57,357.42]
[1758601360814,11.4197,215.65,215.58,7.06]
[1758601361018,7.25,215.65,215.58,7.06]
[1758601362820,7.25,215.65,215.59,4.1706]
[1758601363731,7.25,215.65,215.58,7.06]
[1758601363732,7.25,215.65,215.61,4.1704]
[1758601364025,7.25,215.69,215.62,7.06]
[1758601364222,3.36315143,215.68,215.62,7.06]
[1758601364429,10.61315143,215.67,215.62,7.06]
[1758601364622,3.36315143,215.66,215.61,118.3104]
[1758601364927,7.25,215.67,215.61,125.3704]
[1758601365123,3.36298998,215.66,215.62,7.06]
[1758601365422,7.25,215.69,215.62,7.06]
[1758601365720,3.36261457,215.68,215.62,7.06]
[1758601366022,3.36261457,215.67,215.62,7.06]
[1758601366225,10.61261457,215.66,215.62,7.06]
[1758601366423,7.25,215.66,215.62,7.06]
[1758601366816,7.25,215.66,215.61,118.3104]
[1758601367218,7.25,215.66,215.62,7.06]
[1758601368528,7.25,215.66,215.61,118.3104]
[1758601368730,7.25,215.71,215.62,11.2301]
[1758601368928,3.36399879,215.7,215.62,7.06]
[1758601369126,3.36399879,215.69,215.62,7.06]
[1758601369328,3.36399879,215.68,215.62,7.06]
[1758601369629,3.36399879,215.67,215.62,7.06]
[1758601369928,7.25,215.69,215.62,7.06]
[1758601370129,3.3643117,215.68,215.62,7.06]
[1758601370428,11.419,215.69,215.62,7.06]
[1758601370631,3.36451196,215.68,215.62,9.53607605]
[1758601370928,11.419,215.69,215.62,9.53607605]
[1758601371230,3.36449928,215.68,215.62,7.06]
[1758601371432,11.419,215.69,215.62,7.06]
[1758601371622,3.36471891,215.68,215.62,7.06]
[1758601371930,11.419,215.69,215.62,7.06]
[1758601372125,7.53406344,215.68,215.62,7.06]
[1758601372430,7.25,215.66,215.62,7.06]
[1758601373223,7.25,215.66,215.61,114.14]
[1758601373428,7.25,215.66,215.62,7.06]
[1758601373725,7.25,215.66,215.61,114.14]
[1758601374322,7.25,215.66,215.62,7.06]
[1758601374724,7.25,215.66,215.61,114.14]
[1758601374924,4.1692,215.68,215.61,114.14]
[1758601375229,10.61614173,215.67,215.61,114.14]
[1758601375422,7.25,215.67,215.61,114.14]
[1758601376232,7.25,215.67,215.62,2.47607605]
[1758601376434,3.36942007,215.66,215.62,2.47607605]
[1758601376726,5.16802973,215.74,215.62,6.64627605]
[1758601376920,11.77837701,215.73,215.65,7.06]
[1758601377126,3.3694432,215.72,215.65,7.06]
[1758601377530,7.5377432,215.72,215.65,7.06]
[1758601377729,3.3694432,215.71,215.65,7.06]
[1758601378728,7.25,215.69,215.63,114.12]
[1758601378931,10.6194432,215.68,215.64,7.06]
[1758601379135,3.3694432,215.67,215.64,7.06]
[1758601380635,3.3694432,215.67,215.64,7.26]